fUSD/lending_fUSD_20250606
["ID","MTS","AMOUNT","RATE_DAILY","PERIOD"]
[364748759,1749227480497,-480.0,0.00030349,5]
[364748760,1749227480511,-756.68,0.00030349,5]
[364748761,1749227480525,-768.9,0.00030349,5]
[364748762,1749227480539,-480.0,0.00030349,5]
[364748763,1749227480552,-996.18,0.00030349,5]
[364748764,1749227480565,-480.0,0.00030349,5]
[364748765,1749227480579,-480.0,0.00030349,5]
[364748766,1749227480592,-565.52,0.00030349,5]
[364748767,1749227480606,-480.0,0.00030349,5]
[364748768,1749227480619,-218.48555047,0.00030349,5]
[364748769,1749227480634,-480.0,0.00030349,5]
[364748770,1749227480648,-1078.44,0.00030349,5]
[364748771,1749227480663,-480.0,0.00030349,5]
[364748772,1749227480676,-1292.15,0.00030349,5]
[364748773,1749227480690,-754.92,0.00030349,5]
[364748774,1749227480714,-916.88,0.00030349,5]
[364748775,1749227480731,-480.0,0.00030349,5]
[364748776,1749227480749,-871.22,0.00030349,5]
[364748777,1749227480766,-764.22,0.00030349,5]
[364748778,1749227480781,-886.9,0.00030349,5]
[364748779,1749227480797,-937.02,0.00030349,5]
[364748780,1749227480815,-1986.83,0.00030349,5]
[364748781,1749227480831,-601.23,0.00030349,5]
[364748782,1749227480846,-861.69,0.00030349,5]
[364748783,1749227480862,-480.0,0.00030349,5]
[364748784,1749227480877,-156.57172688,0.00030349,5]
[364748785,1749227480896,-530.48,0.00030349,5]
[364748786,1749227480912,-987.41,0.00030349,5]
[364748787,1749227480929,-1068.48,0.00030349,5]
[364748788,1749227480947,-822.76,0.00030349,5]
[364748789,1749227480962,-1114.8,0.00030349,5]
[364748790,1749227480978,-1960.08,0.00030349,5]
[364748791,1749227480994,-822.84,0.00030349,5]
[364748792,1749227481009,-4079.81,0.00030349,5]
[364748793,1749227481022,-536.39,0.00030349,5]
[364748794,1749227481036,-1694.55,0.00030349,5]
[364748795,1749227481050,-2260.71,0.00030349,5]
[364748796,1749227481064,-480.0,0.00030349,5]
[364748797,1749227481077,-1968.73,0.00030349,5]
[364748798,1749227481091,-1126.23,0.00030349,5]
[364748799,1749227481106,-2346.11,0.00030349,5]
[364748800,1749227481120,-608.71,0.00030349,5]
[364748801,1749227481134,-1228.25,0.00030349,5]
[364748802,1749227481148,-715.37,0.00030349,5]
[364748803,1749227481166,-552.57,0.00030349,5]
[364748804,1749227481179,-1042.77,0.00030349,5]
[364748805,1749227481193,-874.37,0.00030349,5]
[364748806,1749227481206,-480.0,0.00030349,5]
[364748807,1749227481218,-480.0,0.00030349,5]
[364748808,1749227481232,-480.0,0.00030349,5]
[364748809,1749227481245,-643.42,0.00030349,5]
[364748810,1749227481259,-480.0,0.00030349,5]
[364748811,1749227481272,-150.0,0.00030355,7]
[364748812,1749227481285,-150.0,0.00030355,7]
[364748813,1749227481299,-500.0,0.00030356,7]
[364748814,1749227481312,-500.0,0.00030356,2]
[364748815,1749227481326,-1706.0,0.00030356,7]
[364748816,1749227481340,-1249.0,0.00030356,7]
[364748817,1749227481354,-500.0,0.00030356,7]
[364748818,1749227481370,-500.0,0.00030356,7]
[364748819,1749227481387,-500.0,0.00030356,7]
[364748820,1749227481401,-500.0,0.00030356,7]
[364748821,1749227481415,-429.0,0.00030356,7]
[364748822,1749227481429,-4587.21,0.00030356,5]
[364748823,1749227481443,-1698.9,0.00030356,5]
[364748824,1749227481457,-795.67,0.00030356,5]
[364748825,1749227481470,-1782.25,0.00030356,5]
[364748826,1749227481484,-897.82,0.00030356,5]
[364748827,1749227481498,-950.52,0.00030356,5]
[364748828,1749227481512,-1314.64,0.00030356,5]
[364748829,1749227481526,-808.41,0.00030356,5]
[364748830,1749227481540,-4664.58,0.00030356,5]
[364748831,1749227481555,-573.94,0.00030356,5]
[364748832,1749227481569,-1107.97,0.00030356,5]
[364748833,1749227481583,-2782.05453694,0.00030356,5]
[364748834,1749227482360,-775.29673109,0.00030356,5]
[364748835,1749227482375,-555.63352778,0.00030356,5]
[364748836,1749227482404,-480.0,0.00029845,5]
[364748837,1749227482414,-480.0,0.00030327,5]
[364748838,1749227482424,-329.12520419,0.00030356,5]
[364748839,1749227482434,-757.84,0.00030356,5]
[364748840,1749227482443,-252.74262532,0.00030356,5]
[364748841,1749227483207,-480.0,0.00027397,5]
[364748842,1749227483216,-480.0,0.00027397,5]
[364748843,1749227483225,-480.0,0.00027397,5]
[364748844,1749227483236,-250.0,0.00027397,5]
[364748845,1749227483245,-412.7048815,0.00027397,5]
[364748846,1749227484678,-67.2951185,0.00027397,5]
[364748847,1749227484687,-480.0,0.00027397,5]
[364748848,1749227484697,-512.04,0.00027397,5]
[364748849,1749227484706,-480.0,0.00027397,5]
[364748850,1749227484715,-480.0,0.00027561,5]
[364748851,1749227484724,-437.47,0.00027561,5]
[364748852,1749227484733,-250.0,0.00027561,5]
[364748853,1749227484742,-480.0,0.00027561,5]
[364748854,1749227484751,-480.0,0.00027561,5]
[364748855,1749227484761,-512.04,0.00027561,5]
[364748856,1749227484770,-480.0,0.00027561,5]
[364748857,1749227484779,-480.0,0.00027726,5]
[364748858,1749227484789,-250.0,0.00027726,5]
[364748859,1749227484798,-480.0,0.00027726,5]
[364748860,1749227484808,-480.0,0.00027726,5]
[364748861,1749227484818,-512.04,0.00027726,5]
[364748862,1749227484828,-480.0,0.00027726,5]
[364748863,1749227484838,-480.0,0.0002789,5]
[364748864,1749227484847,-480.0,0.0002789,5]
[364748865,1749227484856,-480.0,0.0002789,5]
[364748866,1749227484866,-512.04,0.0002789,5]
[364748867,1749227484876,-480.0,0.0002789,5]
[364748868,1749227484886,-460.93696201,0.00028054,5]
[364748869,1749227484919,-19.06303799,0.00028054,5]
[364748870,1749227484929,-480.0,0.00028054,5]
[364748871,1749227484939,-480.0,0.00028054,5]
[364748872,1749227484948,-480.0,0.00028054,5]
[364748873,1749227484958,-512.04,0.00028054,5]
[364748874,1749227484967,-480.0,0.00028054,5]
[364748875,1749227484977,-480.0,0.00028219,5]
[364748876,1749227484987,-480.0,0.00028219,5]
[364748877,1749227484996,-480.0,0.00028219,5]
[364748878,1749227485005,-318.09696201,0.00028219,5]
[364748879,1749227485216,-193.94303799,0.00028219,5]
[364748880,1749227485226,-480.0,0.00028219,5]
[364748881,1749227485235,-480.0,0.00028383,5]
[364748882,1749227485244,-516.91,0.00028383,5]
[364748883,1749227485253,-512.04,0.00028383,5]
[364748884,1749227485263,-480.0,0.00028383,5]
[364748885,1749227485272,-480.0,0.00028547,5]
[364748886,1749227485281,-512.04,0.00028547,5]
[364748887,1749227485290,-151.0,0.00028712,2]
[364748888,1749227485299,-151.0,0.00028712,2]
[364748889,1749227485308,-151.0,0.00028712,2]
[364748890,1749227485317,-151.0,0.00028712,2]
[364748891,1749227485326,-151.0,0.00028712,2]
[364748892,1749227485336,-151.0,0.00028712,2]
[364748893,1749227485345,-151.0,0.00028712,2]
[364748894,1749227485354,-151.0,0.00028712,2]
[364748895,1749227485364,-151.0,0.00028712,2]
[364748896,1749227485373,-151.0,0.00028712,2]
[364748897,1749227485385,-480.0,0.00028712,5]
[364748898,1749227485394,-151.0,0.00028712,2]
[364748899,1749227485404,-151.0,0.00028712,2]
[364748900,1749227485413,-512.04,0.00028712,5]
[364748901,1749227485422,-151.0,0.00028712,2]
[364748902,1749227485432,-480.0,0.00028876,5]
[364748903,1749227485442,-512.04,0.00028876,5]
[364748904,1749227485452,-480.0,0.00029041,5]
[364748905,1749227485461,-512.04,0.00029041,5]
[364748906,1749227485470,-480.0,0.00029205,5]
[364748907,1749227485480,-480.0,0.00029369,5]
[364748908,1749227485491,-1314.76,0.00029534,5]
[364748909,1749227485501,-480.0,0.00029534,5]
[364748910,1749227485510,-1314.76,0.00029698,5]
[364748911,1749227485521,-480.0,0.00029824,5]
[364748912,1749227485532,-493.12,0.00029834,5]
[364748913,1749227485541,-480.0,0.00029834,5]
[364748914,1749227485553,-480.0,0.00029834,5]
[364748915,1749227485563,-426.45613207,0.00029834,5]
[364748916,1749227485575,-480.0,0.00029845,5]
[364748917,1749227485584,-480.0,0.00029845,5]
[364748918,1749227485594,-1314.76,0.00029863,5]
[364748919,1749227485606,-480.0,0.00029988,5]
[364748920,1749227485616,-480.0,0.00029988,5]
[364748921,1749227485625,-480.0,0.00029998,5]
[364748922,1749227485636,-493.12,0.00029998,5]
[364748923,1749227485645,-480.0,0.00029998,5]
[364748924,1749227485654,-480.0,0.00030009,5]
[364748925,1749227485663,-616.72,0.00030009,5]
[364748926,1749227485673,-480.0,0.00030009,5]
[364748927,1749227485682,-1314.76,0.00030027,5]
[364748928,1749227485693,-480.0,0.00030152,5]
[364748929,1749227485702,-480.0,0.00030152,5]
[364748930,1749227485713,-493.12,0.00030163,5]
[364748931,1749227485722,-480.0,0.00030163,5]
[364748932,1749227485732,-480.0,0.00030163,5]
[364748933,1749227485742,-480.0,0.00030173,5]
[364748934,1749227485751,-480.0,0.00030173,5]
[364748935,1749227485761,-1314.76,0.00030191,5]
[364748936,1749227485771,-397.26,0.00030317,5]
[364748937,1749227485780,-480.0,0.00030317,5]
[364748938,1749227485789,-493.12,0.00030327,5]
[364748939,1749227485798,-480.0,0.00030327,5]
[364748940,1749227485808,-614.49,0.00030327,5]
[364748941,1749227485819,-480.0,0.00030338,5]
[364748942,1749227485829,-480.0,0.00030338,5]
[364748943,1749227485838,-227.25737468,0.00030356,5]
[364748944,1749227485848,-1235.4,0.00030356,5]
[364748945,1749227485858,-879.42,0.00030356,5]
[364748946,1749227485867,-1063.27,0.00030356,5]
[364748947,1749227485876,-707.79,0.00030356,2]
[364748948,1749227485887,-2227.4,0.00030356,5]
[364748949,1749227485899,-884.44,0.00030356,5]
[364748950,1749227485909,-949.13,0.00030356,2]
[364748951,1749227485918,-1185.65,0.00030356,5]
[364748952,1749227485928,-785.68,0.00030356,5]
[364748953,1749227485939,-1102.26475967,0.00030356,5]
[364748954,1749227502093,215.0,0.00035616,120]
[364748956,1749227518482,1237.0,0.0003561,120]
[364748957,1749227528383,167.18,0.00013699,2]
[364748962,1749227550517,150.0,0.00031151,120]
[364748963,1749227578371,340.39104851,0.0003561,120]
[364748964,1749227593470,409.29434186,0.00035616,120]
[364748965,1749227598850,900.28180769,0.00035616,120]
[364748966,1749227671286,150.0,0.00034573,120]
[364748970,1749227730488,150.0,0.00034908,120]
[364748977,1749228047568,250.0,0.00019,2]
[364748978,1749228090522,150.0,0.00034346,120]
[364748989,1749228570803,150.0,0.00034352,120]
[364748990,1749228575437,198.11,0.00013699,2]
[364748999,1749228630499,150.0,0.00032436,120]
[364749000,1749228631833,-150.0,0.00019999,2]
[364749001,1749228631842,-151.0,0.00020035,2]
[364749002,1749228631852,-151.0,0.00020045,2]
[364749003,1749228631861,-151.0,0.00020056,2]
[364749004,1749228631871,-151.0,0.00020067,2]
[364749005,1749228631880,-198.11,0.00020187,2]
[364749006,1749228631889,-150.0,0.00021369,2]
[364749007,1749228631900,-250.0,0.00021999,2]
[364749008,1749228631911,-223.0,0.00022,2]
[364749009,1749228631922,-222.0,0.00022,2]
[364749010,1749228631932,-1339.35839967,0.00022317,2]
[364749011,1749228631941,-150.0,0.00022739,2]
[364749012,1749228631950,-834.15,0.00023561,2]
[364749013,1749228631960,-150.0,0.00024109,2]
[364749014,1749228631970,-193.91,0.00025299,2]
[364749015,1749228631979,-848.05,0.00025321,2]
[364749016,1749228631989,-233.52,0.00025321,30]
[364749017,1749228631998,-23900.0,0.00025368,2]
[364749018,1749228632008,-200.0,0.00025426,2]
[364749019,1749228632018,-2153.28,0.0002545,2]
[364749020,1749228632027,-150.0,0.00025479,2]
[364749021,1749228632037,-740.36,0.00025623,2]
[364749022,1749228632046,-1000.0,0.00025696,2]
[364749023,1749228632056,-834.15,0.00025825,2]
[364749024,1749228632066,-200.0,0.00025841,2]
[364749025,1749228632076,-3306.61762126,0.00025956,2]
[364749026,1749228632085,-300.0,0.00025958,2]
[364749027,1749228632094,-2751.0,0.00025959,2]
[364749028,1749228632104,-150.0,0.00026081,2]
[364749029,1749228632114,-1000.0,0.00026204,2]
[364749030,1749228632124,-166.66,0.0002645,2]
[364749031,1749228632133,-3947.24580945,0.00026482,2]
[364749032,1749228632146,-12014.79766618,0.00026482,2]
[364749033,1749228632155,-151.0,0.00026575,2]
[364749034,1749228632166,-151.0,0.00026575,2]
[364749035,1749228632176,-4195.22588359,0.00026582,2]
[364749036,1749228632185,-1097.45088849,0.0002659,2]
[364749037,1749228632194,-9999.99,0.00026591,2]
[364749038,1749228632204,-150.99,0.00026591,2]
[364749039,1749228632214,-150.99,0.00026591,2]
[364749040,1749228632227,-9999.99,0.00026591,2]
[364749041,1749228632238,-999.99,0.00026591,2]
[364749042,1749228632247,-1135.86,0.00026591,2]
[364749043,1749228632256,-1852.42,0.00026606,2]
[364749044,1749228632267,-198.11,0.00026676,2]
[364749047,1749228632277,-272.43,0.00026701,2]
[364749048,1749228632286,-150.0,0.00026782,7]
[364749050,1749228632298,-150.0,0.00026849,2]
[364749052,1749228632308,-1285.26200902,0.0002687,2]
[364749054,1749228632318,-300.0,0.000269,9]
[364749056,1749228632327,-452.77058216,0.000269,16]
[364749059,1749228632346,-207.52686291,0.000269,16]
[364749061,1749228632356,-225.0,0.00027033,2]
[364749063,1749228632365,-123.53160702,0.00027262,2]
[364749066,1749228632376,-112.46839298,0.00027262,2]
[364749068,1749228632386,-660.29744499,0.00027279,16]
[364749069,1749228632395,-427.23416203,0.00027296,12]
[364749072,1749228632406,-168.03895088,0.00027296,12]
[364749074,1749228632415,-164.69994341,0.00027296,2]
[364749075,1749228632424,-168.04109455,0.00027297,2]
[364749077,1749228632433,-3526.32925631,0.00027297,2]
[364749079,1749228632443,-575.51917086,0.00027297,2]
[364749081,1749228632452,-164.69994335,0.00027324,2]
[364749083,1749228632462,-201.0,0.00027335,2]
[364749085,1749228632470,-164.69994335,0.00027351,2]
[364749087,1749228632479,-500.0,0.00027373,2]
[364749089,1749228632489,-500.0,0.00027373,2]
[364749091,1749228632498,-503.81434299,0.00027373,2]
[364749093,1749228632507,-500.0,0.00027373,2]
[364749095,1749228632517,-500.0,0.00027373,2]
[364749097,1749228632526,-500.0,0.00027373,2]
[364749099,1749228632535,-500.0,0.00027373,2]
[364749101,1749228632545,-500.0,0.00027373,2]
[364749103,1749228632554,-500.0,0.00027373,2]
[364749105,1749228632564,-195.81,0.00027377,2]
[364749107,1749228632573,-666.56,0.00027377,2]
[364749109,1749228632582,-164.69994335,0.00027379,2]
[364749111,1749228632592,-500.0,0.00027386,2]
[364749113,1749228632601,-150.0,0.00027386,2]
[364749115,1749228632610,-239255.69858,0.00027387,2]
[364749117,1749228632620,-334.49521453,0.00027387,2]
[364749119,1749228632629,-666.56,0.00027387,2]
[364749121,1749228632639,-545.86885709,0.00027396,2]
[364749124,1749228632649,-367.66126964,0.00027396,2]
[364749126,1749228632659,-246.22013639,0.00027396,2]
[364749128,1749228632669,-480.0,0.00027397,5]
[364749130,1749228632678,-480.0,0.00027397,5]
[364749132,1749228632687,-480.0,0.00027397,5]
[364749134,1749228632696,-480.0,0.00027397,5]
[364749136,1749228632705,-480.0,0.00027397,5]
[364749138,1749228632714,-480.0,0.00027397,5]
[364749140,1749228632723,-480.0,0.00027397,5]
[364749142,1749228632733,-491.15568339,0.00027397,5]
[364749144,1749228632742,-480.0,0.00027397,5]
[364749146,1749228632752,-480.0,0.00027397,5]
[364749148,1749228632761,-480.0,0.00027397,5]
[364749150,1749228632770,-480.0,0.00027397,5]
[364749152,1749228632779,-480.0,0.00027397,5]
[364749154,1749228632788,-486.14436646,0.00027397,5]
[364749156,1749228632798,-480.0,0.00027397,5]
[364749158,1749228632807,-480.0,0.00027397,5]
[364749160,1749228632817,-480.0,0.00027397,5]
[364749162,1749228632826,-194.00167207,0.00027397,5]
[364749164,1749228632835,-480.0,0.00027397,5]
[364749166,1749228632843,-480.0,0.00027397,5]
[364749168,1749228632853,-422.3138648,0.00027397,5]
[364749169,1749228632863,-480.0,0.00027397,5]
[364749171,1749228632872,-489.59481126,0.00027397,5]
[364749173,1749228632882,-480.0,0.00027397,5]
[364749175,1749228632891,-480.0,0.00027397,5]
[364749178,1749228632901,-480.0,0.00027397,5]
[364749179,1749228632910,-480.0,0.00027397,5]
[364749181,1749228632919,-544.13382013,0.00027397,5]
[364749183,1749228632929,-611.88,0.00027397,30]
[364749185,1749228632938,-289.70011547,0.00027397,5]
[364749187,1749228632947,-480.0,0.00027397,5]
[364749189,1749228632957,-480.0,0.00027397,5]
[364749191,1749228632967,-480.0,0.00027397,5]
[364749193,1749228632976,-480.0,0.00027397,5]
[364749195,1749228632985,-480.0,0.00027397,5]
[364749196,1749228632994,-493.49720117,0.00027397,5]
[364749198,1749228633005,-480.0,0.00027397,5]
[364749200,1749228633014,-344.84434259,0.00027397,5]
[364749201,1749228633023,-480.0,0.00027397,5]
[364749203,1749228633033,-480.0,0.00027397,5]
[364749205,1749228633042,-480.0,0.00027397,5]
[364749207,1749228633051,-480.0,0.00027397,5]
[364749209,1749228633061,-480.0,0.00027397,5]
[364749211,1749228633071,-480.0,0.00027397,5]
[364749213,1749228633080,-480.0,0.00027397,5]
[364749215,1749228633089,-480.0,0.00027397,5]
[364749217,1749228633098,-480.0,0.00027397,5]
[364749219,1749228633109,-480.0,0.00027397,5]
[364749221,1749228633118,-414.51703739,0.00027397,5]
[364749223,1749228633128,-480.0,0.00027397,5]
[364749225,1749228633137,-480.0,0.00027397,5]
[364749227,1749228633147,-480.0,0.00027397,5]
[364749229,1749228633156,-480.0,0.00027397,5]
[364749230,1749228633165,-506.87505889,0.00027397,5]
[364749232,1749228633174,-487.95206151,0.00027397,5]
[364749234,1749228633185,-349.87284178,0.00027397,5]
[364749236,1749228633194,-1279.2,0.00027397,5]
[364749238,1749228633204,-500.0,0.00027397,2]
[364749240,1749228633213,-500.0,0.00027397,2]
[364749242,1749228633225,-500.0,0.00027397,2]
[364749244,1749228633234,-108.28485278,0.00027397,2]
[364749247,1749228633250,-391.71514722,0.00027397,2]
[364749249,1749228633259,-130.87287703,0.00027397,2]
[364749252,1749228633282,-369.12712297,0.00027397,2]
[364749254,1749228633292,-480.0,0.00027397,5]
[364749256,1749228633304,-500.0,0.00027397,2]
[364749258,1749228633313,-500.0,0.00027397,2]
[364749260,1749228633322,-500.0,0.00027397,2]
[364749262,1749228633331,-500.0,0.00027397,2]
[364749264,1749228633340,-500.0,0.00027397,2]
[364749266,1749228633349,-500.0,0.00027397,2]
[364749268,1749228633358,-467.00093178,0.00027397,5]
[364749270,1749228633367,-480.0,0.00027397,5]
[364749271,1749228633376,-480.0,0.00027397,5]
[364749273,1749228633386,-351.92185397,0.00027397,5]
[364749275,1749228633395,-425.02423976,0.00027397,5]
[364749277,1749228633405,-489.6966209,0.00027397,5]
[364749279,1749228633416,-480.0,0.00027397,5]
[364749281,1749228633426,-240.04029512,0.00027397,5]
[364749283,1749228633435,-695.65,0.00027397,5]
[364749285,1749228633445,-480.0,0.00027397,5]
[364749287,1749228633455,-480.0,0.00027397,5]
[364749289,1749228633465,-480.0,0.00027397,5]
[364749291,1749228633474,-480.0,0.00027397,5]
[364749293,1749228633483,-480.0,0.00027397,5]
[364749294,1749228633493,-480.0,0.00027397,5]
[364749295,1749228633503,-480.0,0.00027397,5]
[364749296,1749228633512,-421.12346784,0.00027397,5]
[364749297,1749228633521,-480.92699885,0.00027397,5]
[364749298,1749228633531,-480.0,0.00027397,5]
[364749299,1749228633540,-480.0,0.00027397,5]
[364749300,1749228633550,-480.0,0.00027397,5]
[364749301,1749228633559,-480.0,0.00027397,5]
[364749302,1749228633568,-480.0,0.00027397,5]
[364749303,1749228633578,-480.0,0.00027397,5]
[364749304,1749228633587,-480.0,0.00027397,5]
[364749305,1749228633596,-480.0,0.00027397,5]
[364749306,1749228633608,-480.0,0.00027397,5]
[364749307,1749228633617,-480.0,0.00027397,5]
[364749308,1749228633627,-480.0,0.00027397,5]
[364749309,1749228633636,-480.0,0.00027397,5]
[364749310,1749228633645,-480.0,0.00027397,5]
[364749311,1749228633655,-480.0,0.00027397,5]
[364749312,1749228633664,-480.43663519,0.00027397,5]
[364749313,1749228633674,-480.0,0.00027397,5]
[364749314,1749228633683,-480.0,0.00027397,5]
[364749315,1749228633693,-480.0,0.00027397,5]
[364749316,1749228633703,-480.0,0.00027397,5]
[364749317,1749228633712,-480.0,0.00027397,5]
[364749318,1749228633721,-480.0,0.00027397,5]
[364749319,1749228633731,-484.91626101,0.00027397,5]
[364749320,1749228633740,-480.0,0.00027397,5]
[364749321,1749228633750,-991.15,0.00027397,5]
[364749322,1749228633760,-500.0,0.00027397,5]
[364749323,1749228633770,-500.0,0.00027397,5]
[364749324,1749228633780,-500.0,0.00027397,5]
[364749325,1749228633790,-500.0,0.00027397,5]
[364749326,1749228633799,-500.0,0.00027397,5]
[364749327,1749228633808,-500.0,0.00027397,5]
[364749328,1749228633818,-500.0,0.00027397,5]
[364749329,1749228633827,-500.0,0.00027397,5]
[364749330,1749228633836,-445.42,0.00027397,5]
[364749331,1749228633845,-500.0,0.00027397,5]
[364749332,1749228633855,-500.0,0.00027397,5]
[364749333,1749228633864,-500.0,0.00027397,5]
[364749334,1749228633873,-500.0,0.00027397,5]
[364749335,1749228633884,-500.0,0.00027397,5]
[364749336,1749228633894,-500.0,0.00027397,5]
[364749337,1749228633903,-480.0,0.00027397,5]
[364749338,1749228633913,-480.0,0.00027397,5]
[364749339,1749228633922,-480.0,0.00027397,5]
[364749340,1749228633932,-778.19,0.00027397,5]
[364749341,1749228633941,-470.04607363,0.00027397,5]
[364749342,1749228633950,-480.0,0.00027397,5]
[364749343,1749228633960,-480.0,0.00027397,5]
[364749344,1749228633970,-480.0,0.00027397,5]
[364749345,1749228633979,-480.0,0.00027397,5]
[364749346,1749228633989,-462.1176797,0.00027397,5]
[364749347,1749228633998,-487.50329774,0.00027397,5]
[364749348,1749228634008,-484.69207752,0.00027397,5]
[364749349,1749228634017,-480.0,0.00027397,5]
[364749350,1749228634026,-480.0,0.00027397,5]
[364749351,1749228634036,-480.0,0.00027397,5]
[364749352,1749228634045,-480.0,0.00027397,5]
[364749353,1749228634054,-536.18,0.00027397,5]
[364749354,1749228634064,-500.0,0.00027397,5]
[364749355,1749228634074,-500.0,0.00027397,5]
[364749356,1749228634083,-500.0,0.00027397,5]
[364749357,1749228634093,-500.0,0.00027397,5]
[364749358,1749228634102,-480.0,0.00027397,5]
[364749359,1749228634112,-502.32635105,0.00027397,5]
[364749360,1749228634122,-480.0,0.00027397,5]
[364749361,1749228634132,-480.0,0.00027397,5]
[364749362,1749228634142,-480.0,0.00027397,5]
[364749363,1749228634152,-480.0,0.00027397,5]
[364749364,1749228634163,-480.0,0.00027397,5]
[364749365,1749228634172,-639.94,0.00027397,5]
[364749366,1749228634181,-480.0,0.00027397,5]
[364749367,1749228634191,-500.0,0.00027397,5]
[364749368,1749228634201,-373.85584544,0.00027397,5]
[364749369,1749228634210,-480.0,0.00027397,5]
[364749370,1749228634222,-519.4362092,0.00027397,5]
[364749371,1749228634232,-466.6031885,0.00027397,5]
[364749372,1749228634241,-480.0,0.00027397,5]
[364749373,1749228634251,-602.66,0.00027397,5]
[364749374,1749228634260,-504.41940431,0.00027397,5]
[364749375,1749228634270,-480.0,0.00027397,5]
[364749376,1749228634280,-938.44,0.00027397,5]
[364749377,1749228634290,-483.38149312,0.00027397,5]
[364749378,1749228634300,-582.39738465,0.00027397,5]
[364749379,1749228634310,-480.0,0.00027397,5]
[364749380,1749228634319,-425.57769929,0.00027397,5]
[364749381,1749228634329,-904.92,0.00027397,5]
[364749382,1749228634339,-480.0,0.00027397,5]
[364749383,1749228634348,-480.0,0.00027397,5]
[364749384,1749228634358,-480.0,0.00027397,5]
[364749385,1749228634368,-480.0,0.00027397,5]
[364749386,1749228634378,-483.23743115,0.00027397,5]
[364749387,1749228634387,-490.96200865,0.00027397,5]
[364749388,1749228634396,-639.49,0.00027397,5]
[364749389,1749228634406,-480.0,0.00027397,5]
[364749390,1749228634416,-480.0,0.00027397,5]
[364749391,1749228634425,-424.05378161,0.00027397,5]
[364749392,1749228634435,-480.0,0.00027397,5]
[364749393,1749228634445,-480.0,0.00027397,5]
[364749394,1749228634455,-545.23912968,0.00027397,5]
[364749395,1749228634464,-544.01,0.00027397,5]
[364749396,1749228634475,-486.89178278,0.00027397,5]
[364749397,1749228634484,-464.30648307,0.00027397,5]
[364749398,1749228634493,-480.0,0.00027397,5]
[364749399,1749228634504,-480.0,0.00027397,5]
[364749400,1749228634513,-480.0,0.00027397,5]
[364749401,1749228634523,-480.0,0.00027397,5]
[364749402,1749228634533,-755.95,0.00027397,5]
[364749403,1749228634542,-480.0,0.00027397,5]
[364749404,1749228634552,-480.0,0.00027397,5]
[364749405,1749228634562,-426.57189992,0.00027397,5]
[364749406,1749228634572,-480.0,0.00027397,5]
[364749407,1749228634582,-480.0,0.00027397,5]
[364749408,1749228634591,-480.0,0.00027397,5]
[364749409,1749228634601,-480.0,0.00027397,5]
[364749410,1749228634611,-463.17201538,0.00027397,5]
[364749411,1749228634621,-480.0,0.00027397,5]
[364749412,1749228634630,-480.0,0.00027397,5]
[364749413,1749228634640,-480.0,0.00027397,5]
[364749414,1749228634873,-480.0,0.00027397,5]